[Event "*** Titled Tuesday Blitz"]
[Site "Chess.com"]
[Date "2018.09.04"]
[Round "10"]
[White "colemman"]
[Black "W_Amadeus"]
[Result "0-1"]
[WhiteElo "2459"]
[BlackElo "2596"]
[TimeControl "180+2"]
[EndTime "15:56:44 PDT"]
[Termination "W_Amadeus won by resignation"]

1. d4 {[%clk 0:03:01.9]} 1... d6 {[%clk 0:03:01.9]} 2. Nf3 {[%clk 0:03:03.7]}
2... Nf6 {[%clk 0:03:02.8]} 3. Nbd2 {[%clk 0:03:04.6]} 3... Bf5 {[%clk
0:03:00.6]} 4. Nh4 {[%clk 0:03:04.3]} 4... Bc8 {[%clk 0:02:39.9]} 5. g3 {[%clk
0:03:01.8]} 5... g6 {[%clk 0:02:37.5]} 6. Bg2 {[%clk 0:03:02.3]} 6... Bg7 {[%clk
0:02:38.8]} 7. O-O {[%clk 0:03:02.9]} 7... O-O {[%clk 0:02:40.4]} 8. Nc4 {[%clk
0:02:59.3]} 8... d5 {[%clk 0:02:27.6]} 9. Ne5 {[%clk 0:02:57]} 9... Nbd7 {[%clk
0:02:24.1]} 10. Bf4 {[%clk 0:02:51]} 10... c6 {[%clk 0:02:20.6]} 11. c3 {[%clk
0:02:47.4]} 11... Qb6 {[%clk 0:02:13.3]} 12. Qb3 {[%clk 0:02:47.2]} 12... Ne4
{[%clk 0:01:45.9]} 13. Nhf3 {[%clk 0:02:39.9]} 13... Nxe5 {[%clk 0:01:32.4]} 14.
Bxe5 {[%clk 0:02:40.6]} 14... Bg4 {[%clk 0:01:26.1]} 15. Bxg7 {[%clk 0:02:40]}
15... Kxg7 {[%clk 0:01:28]} 16. Rfd1 {[%clk 0:02:29.4]} 16... Qxb3 {[%clk
0:00:49.6]} 17. axb3 {[%clk 0:02:29.2]} 17... a6 {[%clk 0:00:50.6]} 18. h3
{[%clk 0:02:29.6]} 18... Bxf3 {[%clk 0:00:51.1]} 19. Bxf3 {[%clk 0:02:30.3]}
19... Nd6 {[%clk 0:00:48.3]} 20. Re1 {[%clk 0:02:28.4]} 20... Rfe8 {[%clk
0:00:46.7]} 21. e4 {[%clk 0:02:21.6]} 21... dxe4 {[%clk 0:00:47.7]} 22. Bxe4
{[%clk 0:02:22.4]} 22... Nxe4 {[%clk 0:00:49.3]} 23. Rxe4 {[%clk 0:02:23.6]}
23... e6 {[%clk 0:00:48.1]} 24. Ra5 {[%clk 0:02:21.7]} 24... Rad8 {[%clk
0:00:48]} 25. Kf1 {[%clk 0:02:20]} 25... Kf8 {[%clk 0:00:32.2]} 26. Ke2 {[%clk
0:02:19.3]} 26... Rd5 {[%clk 0:00:33.1]} 27. b4 {[%clk 0:02:15.2]} 27... f6
{[%clk 0:00:25.9]} 28. Kd3 {[%clk 0:02:12.8]} 28... Kf7 {[%clk 0:00:26.6]} 29.
Kc4 {[%clk 0:02:11.2]} 29... g5 {[%clk 0:00:21.6]} 30. h4 {[%clk 0:02:09.3]}
30... h6 {[%clk 0:00:21]} 31. Kd3 {[%clk 0:02:06]} 31... Red8 {[%clk 0:00:18.3]}
32. Kc4 {[%clk 0:01:48.1]} 32... Re8 {[%clk 0:00:14.8]} 33. Re2 {[%clk
0:01:46.9]} 33... Red8 {[%clk 0:00:14.2]} 34. Ra1 {[%clk 0:01:41.3]} 34... Rf5
{[%clk 0:00:12.1]} 35. Rae1 {[%clk 0:01:38.3]} 35... Rd6 {[%clk 0:00:10.6]} 36.
Rh1 {[%clk 0:01:35.5]} 36... g4 {[%clk 0:00:11.1]} 37. Ra1 {[%clk 0:01:31.2]}
37... Rdd5 {[%clk 0:00:07.9]} 38. Rae1 {[%clk 0:01:30.6]} 38... e5 {[%clk
0:00:09.2]} 39. dxe5 {[%clk 0:01:22]} 39... fxe5 {[%clk 0:00:11.1]} 40. Re4
{[%clk 0:01:21.1]} 40... h5 {[%clk 0:00:11.7]} 41. R1e2 {[%clk 0:01:21.9]} 41...
Kf6 {[%clk 0:00:12.2]} 42. R4e3 {[%clk 0:01:15.3]} 42... Ke6 {[%clk 0:00:11.2]}
43. Kb3 {[%clk 0:01:10.6]} 43... Rd1 {[%clk 0:00:09.2]} 44. f3 {[%clk
0:01:04.5]} 44... gxf3 {[%clk 0:00:07.4]} 45. Rf2 {[%clk 0:01:04.8]} 45... Rg1
{[%clk 0:00:07.4]} 46. Rfxf3 {[%clk 0:01:05.3]} 46... Rxf3 {[%clk 0:00:07.8]}
47. Rxf3 {[%clk 0:01:06.8]} 47... e4 {[%clk 0:00:09.3]} 48. Re3 {[%clk
0:01:03.8]} 48... Ke5 {[%clk 0:00:10.6]} 49. Kc4 {[%clk 0:01:03.9]} 49... b6
{[%clk 0:00:11.6]} 50. Kb3 {[%clk 0:00:58.6]} 50... Rg2 {[%clk 0:00:09.7]} 51.
Ka3 {[%clk 0:00:45.4]} 51... Rf2 {[%clk 0:00:10.6]} 52. Re1 {[%clk 0:00:27.8]}
52... Rg2 {[%clk 0:00:10.4]} 53. Re3 {[%clk 0:00:28]} 53... Rf2 {[%clk
0:00:11.9]} 54. Re1 {[%clk 0:00:29]} 54... Rf3 {[%clk 0:00:13.3]} 55. Rg1 {[%clk
0:00:28.4]} 55... e3 {[%clk 0:00:14.8]} 56. Kb3 {[%clk 0:00:27.4]} 56... Ke4
{[%clk 0:00:15.8]} 57. Kc2 {[%clk 0:00:28]} 57... Rf2+ {[%clk 0:00:16.7]} 58.
Kc1 {[%clk 0:00:27.8]} 58... Kf3 {[%clk 0:00:11]} 59. g4 {[%clk 0:00:28.1]}
59... hxg4 {[%clk 0:00:09.6]} 60. h5 {[%clk 0:00:29.4]} 60... g3 {[%clk
0:00:10.7]} 61. h6 {[%clk 0:00:30.4]} 61... g2 {[%clk 0:00:11.9]} 62. h7 {[%clk
0:00:29.4]} 62... Rf1+ {[%clk 0:00:11.1]} 63. Kc2 {[%clk 0:00:30.2]} 63... Rxg1
{[%clk 0:00:08.6]} 64. h8=Q {[%clk 0:00:31.2]} 64... Rc1+ {[%clk 0:00:04.8]} 65.
Kxc1 {[%clk 0:00:30.6]} 65... g1=Q+ {[%clk 0:00:06.5]} 66. Kc2 {[%clk
0:00:31.7]} 66... Qg6+ {[%clk 0:00:07.6]} 67. Kb3 {[%clk 0:00:29.5]} 67... Qe6+
{[%clk 0:00:08]} 68. Kc2 {[%clk 0:00:28.4]} 68... e2 {[%clk 0:00:07.9]} 69. Qh5+
{[%clk 0:00:27.5]} 69... Kf4 {[%clk 0:00:06.8]} 70. Qh4+ {[%clk 0:00:26.4]}
70... Kf5 {[%clk 0:00:07.4]} 71. Kd2 {[%clk 0:00:21.3]} 71... Qb3 {[%clk
0:00:04.1]} 72. Qf2+ {[%clk 0:00:20.9]} 72... Kg5 {[%clk 0:00:03.6]} 73. Qg3+
{[%clk 0:00:21.4]} 73... Kh5 {[%clk 0:00:04.5]} 74. Qh2+ {[%clk 0:00:21.5]}
74... Kg5 {[%clk 0:00:05.6]} 75. Qg2+ {[%clk 0:00:22.8]} 75... Kf6 {[%clk
0:00:06]} 76. Qf3+ {[%clk 0:00:23.3]} 76... Kg5 {[%clk 0:00:06.1]} 77. Qg2+
{[%clk 0:00:24.2]} 77... Kh4 {[%clk 0:00:06.1]} 78. Qf2+ {[%clk 0:00:24.6]}
78... Kh3 {[%clk 0:00:05.6]} 79. Qf3+ {[%clk 0:00:24.6]} 79... Kh4 {[%clk
0:00:06.8]} 80. Qe4+ {[%clk 0:00:25.5]} 80... Kg5 {[%clk 0:00:07.1]} 81. Qe3+
{[%clk 0:00:26.3]} 81... Kf5 {[%clk 0:00:06.4]} 82. Qd3+ {[%clk 0:00:25.9]}
82... Kg5 {[%clk 0:00:04.7]} 83. Qe3+ {[%clk 0:00:25.9]} 83... Kf5 {[%clk
0:00:04.7]} 84. Qf2+ {[%clk 0:00:27.1]} 84... Kg5 {[%clk 0:00:05.6]} 85. Qg3+
{[%clk 0:00:27.6]} 85... Kf5 {[%clk 0:00:06.7]} 86. Qh3+ {[%clk 0:00:26.7]}
86... Kg5 {[%clk 0:00:07.9]} 87. Qg2+ {[%clk 0:00:27.7]} 87... Kf5 {[%clk
0:00:08.4]} 88. Qf3+ {[%clk 0:00:21.1]} 88... Kg5 {[%clk 0:00:09.6]} 89. Kxe2
{[%clk 0:00:20.8]} 89... Qxb2+ {[%clk 0:00:10.1]} 90. Kd3 {[%clk 0:00:22]} 90...
Qb1+ {[%clk 0:00:07.5]} 91. Kd4 {[%clk 0:00:22.6]} 91... Qg6 {[%clk 0:00:05.8]}
92. Qe3+ {[%clk 0:00:20.8]} 92... Kh5 {[%clk 0:00:04.1]} 93. Qe5+ {[%clk
0:00:21.3]} 93... Kh6 {[%clk 0:00:03.9]} 94. Qh8+ {[%clk 0:00:22.1]} 94... Qh7
{[%clk 0:00:03.9]} 95. Qf8+ {[%clk 0:00:20.9]} 95... Qg7+ {[%clk 0:00:04.9]} 96.
Qxg7+ {[%clk 0:00:21.2]} 96... Kxg7 {[%clk 0:00:06.8]} 97. Ke5 {[%clk
0:00:19.9]} 97... Kf7 {[%clk 0:00:04.4]} 98. Kd6 {[%clk 0:00:19.9]} 98... a5
{[%clk 0:00:04.7]} 99. bxa5 {[%clk 0:00:20.3]} 99... bxa5 {[%clk 0:00:05.9]}
100. Kc5 {[%clk 0:00:21.1]} 100... Ke6 {[%clk 0:00:07.3]} 101. c4 {[%clk
0:00:20.9]} 101... Kd7 {[%clk 0:00:04.7]} 102. Kd4 {[%clk 0:00:21.8]} 102... Kd6
{[%clk 0:00:04.3]} 103. Kd3 {[%clk 0:00:23.3]} 103... Kc5 {[%clk 0:00:04.8]}
104. Kc3 {[%clk 0:00:24.7]} 104... a4 {[%clk 0:00:06.1]} 105. Kd3 {[%clk
0:00:25.7]} 105... Kb4 {[%clk 0:00:07.4]} 106. Kd4 {[%clk 0:00:26.7]} 106... a3
{[%clk 0:00:08.1]} 107. c5 {[%clk 0:00:27.5]} 107... a2 {[%clk 0:00:09.2]} 0-1